[Event "Titled Tuesday Blitz February 21 Early 2023"]
[White "Goldin, Alexander"]
[Black "Smith, Garrett L"]
[WhiteFideId "2019540"]
[BlackFideId "2024829"]
[WhiteElo "2542"]
[BlackElo "2047"]
[Result "1-0"]
[Round "02"]
[TimeControl "180+2"]
[Date "2023.02.21"]
[WhiteClock "0:00:06"]
[BlackClock "0:00:13"]

1. d4 {[%clk 0:03:00]}  Nf6 {[%clk 0:02:58]} 2. c4 {[%clk 0:03:00]}  g6 {[%clk 0:02:59]} 3. g3 {[%clk 0:02:59]}  c6 {[%clk 0:02:59]} 4. Bg2 {[%clk 0:02:59]}  d5 {[%clk 0:02:59]} 5. Nf3 {[%clk 0:02:59]}  Bg7 {[%clk 0:03:00]} 6. O-O {[%clk 0:02:59]}  O-O {[%clk 0:02:59]} 7. Qb3 {[%clk 0:02:59]}  a5 {[%clk 0:02:52]} 8. cxd5 {[%clk 0:02:56]}  a4 {[%clk 0:02:49]} 9. Qd1 {[%clk 0:02:54]}  cxd5 {[%clk 0:02:45]} 10. Nc3 {[%clk 0:02:54]}  Qa5 {[%clk 0:02:36]} 11. Bd2 {[%clk 0:02:54]}  a3 {[%clk 0:02:26]} 12. b3 {[%clk 0:02:50]}  Nc6 {[%clk 0:02:23]} 13. Rc1 {[%clk 0:02:32]}  Qd8 {[%clk 0:02:16]} 14. Bf4 {[%clk 0:02:07]}  Ne4 {[%clk 0:02:12]} 15. Ne5 {[%clk 0:01:42]}  Nxc3 {[%clk 0:01:55]} 16. Rxc3 {[%clk 0:01:41]}  Qb6 {[%clk 0:01:52]} 17. Bxd5 {[%clk 0:01:10]}  Qxd4 {[%clk 0:01:36]} 18. Rd3 {[%clk 0:00:56]}  Qc5 {[%clk 0:01:25]} 19. Be3 {[%clk 0:00:47]}  Qb5 {[%clk 0:01:18]} 20. Nxc6 {[%clk 0:00:25]}  bxc6 {[%clk 0:01:18]} 21. Bc4 {[%clk 0:00:24]}  Qb7 {[%clk 0:01:18]} 22. Bc5 {[%clk 0:00:22]}  Bf5 {[%clk 0:01:14]} 23. Rd2 {[%clk 0:00:22]}  Bh3 {[%clk 0:01:13]} 24. Re1 {[%clk 0:00:19]}  Bc3 {[%clk 0:01:12]} 25. Qc2 {[%clk 0:00:17]}  Bxd2 {[%clk 0:01:11]} 26. Qxd2 {[%clk 0:00:18]}  Rad8 {[%clk 0:01:08]} 27. Qh6 {[%clk 0:00:18]}  Bc8 {[%clk 0:00:53]} 28. Bxa3 {[%clk 0:00:17]}  Rfe8 {[%clk 0:00:47]} 29. Bb2 {[%clk 0:00:17]}  e5 {[%clk 0:00:43]} 30. h4 {[%clk 0:00:15]}  Qe7 {[%clk 0:00:34]} 31. h5 {[%clk 0:00:15]}  Qf8 {[%clk 0:00:33]} 32. Qg5 {[%clk 0:00:14]}  Be6 {[%clk 0:00:29]} 33. Bxe6 {[%clk 0:00:09]}  Rxe6 {[%clk 0:00:29]} 34. Qe3 {[%clk 0:00:07]}  Qe7 {[%clk 0:00:26]} 35. Rc1 {[%clk 0:00:07]}  e4 {[%clk 0:00:26]} 36. Kg2 {[%clk 0:00:07]}  f6 {[%clk 0:00:25]} 37. Bd4 {[%clk 0:00:07]}  g5 {[%clk 0:00:25]} 38. h6 {[%clk 0:00:07]}  Rd5 {[%clk 0:00:23]} 39. a4 {[%clk 0:00:07]}  Kf7 {[%clk 0:00:21]} 40. Rc4 {[%clk 0:00:07]}  Kg6 {[%clk 0:00:19]} 41. Qc3 {[%clk 0:00:08]}  f5 {[%clk 0:00:18]} 42. a5 {[%clk 0:00:08]}  f4 {[%clk 0:00:18]} 43. a6 {[%clk 0:00:08]}  f3+ {[%clk 0:00:18]} 44. exf3 {[%clk 0:00:08]}  exf3+ {[%clk 0:00:19]} 45. Kxf3 {[%clk 0:00:09]}  Rf5+ {[%clk 0:00:17]} 46. Kg2 {[%clk 0:00:08]}  c5 {[%clk 0:00:18]} 47. Be3 {[%clk 0:00:08]}  Rxa6 {[%clk 0:00:17]} 48. Qc2 {[%clk 0:00:08]}  Qb7+ {[%clk 0:00:17]} 49. Kh2 {[%clk 0:00:06]}  Kf6 {[%clk 0:00:16]} 50. Rxc5 {[%clk 0:00:06]}  Rxc5 {[%clk 0:00:15]} 51. Qxc5 {[%clk 0:00:07]}  Qe4 {[%clk 0:00:14]} 52. Qxg5+ {[%clk 0:00:07]}  Kf7 {[%clk 0:00:13]} 53. Qg7+ {[%clk 0:00:08]}  Ke8 {[%clk 0:00:13]} 54. Qg8+ {[%clk 0:00:08]}  Kd7 {[%clk 0:00:13]} 55. Qf7+ {[%clk 0:00:06]}  Kc6 {[%clk 0:00:13]} 56. Bf4 {[%clk 0:00:06]}  Qd5 {[%clk 0:00:12]} 57. Qc7+ {[%clk 0:00:06]}  Kb5 {[%clk 0:00:12]} 58. Qc3 {[%clk 0:00:06]}  Rc6 {[%clk 0:00:12]} 59. Qe3 {[%clk 0:00:05]}  Ka6 {[%clk 0:00:12]} 60. Qe2+ {[%clk 0:00:05]}  Kb6 {[%clk 0:00:12]} 61. Be3+ {[%clk 0:00:06]}  Kb7 {[%clk 0:00:12]} 62. b4 {[%clk 0:00:06]}  Qd6 {[%clk 0:00:12]} 63. Qg4 {[%clk 0:00:07]}  Qg6 {[%clk 0:00:12]} 64. Qxg6 {[%clk 0:00:07]}  Rc7 {[%clk 0:00:13]} 65. Qg7 {[%clk 0:00:06]} 1-0


[Site "https://www.chess.com"]

[Event "Titled Tuesday Blitz February 21 Early 2023"]
[White "Rios Escobar, Adan"]
[Black "Orzech, Dominik"]
[WhiteFideId "3403645"]
[BlackFideId "1115065"]
[WhiteElo "2234"]
[BlackElo "2308"]
[Result "1/2-1/2"]
[Round "02"]
[TimeControl "180+2"]
[Date "2023.02.21"]
[WhiteClock "0:00:07"]
[BlackClock "0:02:01"]

1. d4 {[%clk 0:02:49]}  Nf6 {[%clk 0:02:59]} 2. g3 {[%clk 0:02:49]}  c5 {[%clk 0:02:59]} 3. d5 {[%clk 0:02:49]}  g6 {[%clk 0:02:59]} 4. c4 {[%clk 0:02:49]}  Bg7 {[%clk 0:02:58]} 5. Nc3 {[%clk 0:02:50]}  e6 {[%clk 0:02:59]} 6. Nf3 {[%clk 0:02:49]}  exd5 {[%clk 0:02:59]} 7. cxd5 {[%clk 0:02:50]}  d6 {[%clk 0:02:59]} 8. Bg2 {[%clk 0:02:50]}  O-O {[%clk 0:02:59]} 9. O-O {[%clk 0:02:51]}  a6 {[%clk 0:02:59]} 10. a4 {[%clk 0:02:51]}  Nbd7 {[%clk 0:02:59]} 11. Re1 {[%clk 0:02:40]}  Re8 {[%clk 0:02:59]} 12. h3 {[%clk 0:02:39]}  Rb8 {[%clk 0:02:56]} 13. Bf4 {[%clk 0:02:19]}  Qe7 {[%clk 0:02:47]} 14. e4 {[%clk 0:02:15]}  Nh5 {[%clk 0:02:45]} 15. Bg5 {[%clk 0:02:14]}  Bf6 {[%clk 0:02:45]} 16. Bxf6 {[%clk 0:02:13]}  Qxf6 {[%clk 0:02:46]} 17. Bf1 {[%clk 0:01:48]}  Ne5 {[%clk 0:02:39]} 18. Nxe5 {[%clk 0:01:43]}  Qxe5 {[%clk 0:02:40]} 19. Qf3 {[%clk 0:01:18]}  Bd7 {[%clk 0:02:38]} 20. a5 {[%clk 0:01:05]}  b5 {[%clk 0:02:37]} 21. axb6 {[%clk 0:01:05]}  Rxb6 {[%clk 0:02:38]} 22. Nd1 {[%clk 0:00:55]}  Bb5 {[%clk 0:02:35]} 23. Qc3 {[%clk 0:00:39]}  Nf6 {[%clk 0:02:31]} 24. Qxe5 {[%clk 0:00:37]}  Rxe5 {[%clk 0:02:32]} 25. Nc3 {[%clk 0:00:19]}  Bxf1 {[%clk 0:02:27]} 26. Kxf1 {[%clk 0:00:19]}  Kf8 {[%clk 0:02:25]} 27. f4 {[%clk 0:00:19]}  Re8 {[%clk 0:02:24]} 28. Ra2 {[%clk 0:00:18]}  Reb8 {[%clk 0:02:23]} 29. e5 {[%clk 0:00:15]}  Ne8 {[%clk 0:02:22]} 30. Re2 {[%clk 0:00:11]}  h5 {[%clk 0:02:16]} 31. Ne4 {[%clk 0:00:11]}  Ke7 {[%clk 0:02:07]} 32. Kf2 {[%clk 0:00:09]}  Kd7 {[%clk 0:02:05]} 33. Ke3 {[%clk 0:00:09]}  Rb3+ {[%clk 0:02:04]} 34. Kf2 {[%clk 0:00:09]}  R8b6 {[%clk 0:02:04]} 35. exd6 {[%clk 0:00:09]}  R3b5 {[%clk 0:02:03]} 36. Rc2 {[%clk 0:00:07]}  Nxd6 {[%clk 0:02:03]} 37. Nxc5+ {[%clk 0:00:07]}  Ke7 {[%clk 0:02:03]} 38. Nxa6 {[%clk 0:00:05]}  Ne4+ {[%clk 0:02:02]} 39. Ke3 {[%clk 0:00:05]}  Nf6 {[%clk 0:02:01]} 40. Nc7 {[%clk 0:00:05]}  Nxd5+ {[%clk 0:01:59]} 41. Nxd5+ {[%clk 0:00:05]}  Rxd5 {[%clk 0:02:00]} 42. Ra7+ {[%clk 0:00:05]}  Ke6 {[%clk 0:01:59]} 43. Rcc7 {[%clk 0:00:04]}  Rb3+ {[%clk 0:01:59]} 44. Rc3 {[%clk 0:00:01]}  Rxb2 {[%clk 0:01:59]} 45. Rc6+ {[%clk 0:00:01]}  Rd6 {[%clk 0:01:57]} 46. Rxd6+ {[%clk 0:00:02]}  Kxd6 {[%clk 0:01:58]} 47. Rxf7 {[%clk 0:00:02]}  Ke6 {[%clk 0:01:58]} 48. Rg7 {[%clk 0:00:02]}  Rb3+ {[%clk 0:01:58]} 49. Kf2 {[%clk 0:00:02]}  Kf5 {[%clk 0:01:59]} 50. Rf7+ {[%clk 0:00:02]}  Ke6 {[%clk 0:01:59]} 51. Rf8 {[%clk 0:00:03]}  Rb2+ {[%clk 0:01:58]} 52. Kf3 {[%clk 0:00:03]}  Rb3+ {[%clk 0:01:59]} 53. Kf2 {[%clk 0:00:04]}  Rb2+ {[%clk 0:01:59]} 54. Kf3 {[%clk 0:00:04]}  Rb3+ {[%clk 0:02:00]} 55. Kg2 {[%clk 0:00:05]}  Rb2+ {[%clk 0:02:00]} 56. Kg1 {[%clk 0:00:05]}  Rb3 {[%clk 0:02:00]} 57. Kh2 {[%clk 0:00:05]}  Rb2+ {[%clk 0:02:00]} 58. Kh1 {[%clk 0:00:06]}  Rb3 {[%clk 0:02:01]} 59. Kg2 {[%clk 0:00:06]}  Rb2+ {[%clk 0:02:01]} 60. Kf3 {[%clk 0:00:07]} 1/2-1/2


[Site "https://www.chess.com"]

[Event "Titled Tuesday Blitz February 21 Early 2023"]
[White "Kotepalli, Sai Nirupama"]
[Black "Martynov, Pavel"]
[WhiteFideId "5039444"]
[BlackFideId "4101260"]
[WhiteElo "1910"]
[BlackElo "2414"]
[Result "0-1"]
[Round "02"]
[TimeControl "180+2"]
[Date "2023.02.21"]
[WhiteClock "0:01:45"]
[BlackClock "0:01:00"]

1. e4 {[%clk 0:03:00]}  c5 {[%clk 0:03:00]} 2. Nf3 {[%clk 0:02:58]}  e6 {[%clk 0:03:00]} 3. d3 {[%clk 0:02:57]}  d5 {[%clk 0:02:57]} 4. Nbd2 {[%clk 0:02:55]}  Nf6 {[%clk 0:02:58]} 5. g3 {[%clk 0:02:54]}  Be7 {[%clk 0:02:58]} 6. Bg2 {[%clk 0:02:54]}  O-O {[%clk 0:02:58]} 7. O-O {[%clk 0:02:53]}  Nc6 {[%clk 0:02:59]} 8. e5 {[%clk 0:02:52]}  Nd7 {[%clk 0:02:59]} 9. Qe2 {[%clk 0:02:51]}  Qc7 {[%clk 0:02:59]} 10. Re1 {[%clk 0:02:50]}  b5 {[%clk 0:02:57]} 11. c3 {[%clk 0:02:49]}  a5 {[%clk 0:02:55]} 12. Nf1 {[%clk 0:02:49]}  Ba6 {[%clk 0:02:55]} 13. h4 {[%clk 0:02:47]}  b4 {[%clk 0:02:54]} 14. Bf4 {[%clk 0:02:45]}  a4 {[%clk 0:02:54]} 15. Ne3 {[%clk 0:02:45]}  a3 {[%clk 0:02:51]} 16. bxa3 {[%clk 0:02:34]}  bxc3 {[%clk 0:02:47]} 17. Nxd5 {[%clk 0:02:33]}  exd5 {[%clk 0:02:43]} 18. e6 {[%clk 0:02:33]}  Bd6 {[%clk 0:02:40]} 19. Bxd6 {[%clk 0:02:32]}  Qxd6 {[%clk 0:02:39]} 20. exd7 {[%clk 0:02:32]}  Qxd7 {[%clk 0:02:25]} 21. Ne5 {[%clk 0:02:29]}  Nxe5 {[%clk 0:01:52]} 22. Qxe5 {[%clk 0:02:29]}  c2 {[%clk 0:01:47]} 23. Qc3 {[%clk 0:02:17]}  Qf5 {[%clk 0:01:18]} 24. Qxc2 {[%clk 0:02:13]}  c4 {[%clk 0:01:16]} 25. Qc3 {[%clk 0:02:01]}  cxd3 {[%clk 0:01:11]} 26. Re5 {[%clk 0:02:00]}  Qf6 {[%clk 0:01:11]} 27. Bxd5 {[%clk 0:01:54]}  Rac8 {[%clk 0:01:11]} 28. Qd4 {[%clk 0:01:53]}  d2 {[%clk 0:01:04]} 29. Re4 {[%clk 0:01:45]}  Rc1+ {[%clk 0:01:00]} 0-1


[Site "https://www.chess.com"]

[Event "Titled Tuesday Blitz February 21 Early 2023"]
[White "Karas, Marek"]
[Black "Alice, Mateus Felizardo Viageiro"]
[WhiteFideId "14928558"]
[BlackFideId "14800047"]
[WhiteElo "2227"]
[BlackElo "2202"]
[Result "0-1"]
[Round "02"]
[TimeControl "180+2"]
[Date "2023.02.21"]
[WhiteClock "0:00:20"]
[BlackClock "0:00:17"]

1. g3 {[%clk 0:02:59]}  Nf6 {[%clk 0:02:59]} 2. Bg2 {[%clk 0:03:00]}  d5 {[%clk 0:02:58]} 3. Nf3 {[%clk 0:03:00]}  g6 {[%clk 0:02:51]} 4. O-O {[%clk 0:03:01]}  Bg7 {[%clk 0:02:51]} 5. d4 {[%clk 0:03:02]}  O-O {[%clk 0:02:51]} 6. c4 {[%clk 0:03:01]}  c5 {[%clk 0:02:47]} 7. cxd5 {[%clk 0:02:59]}  Qxd5 {[%clk 0:02:44]} 8. Nc3 {[%clk 0:02:57]}  Qh5 {[%clk 0:02:42]} 9. d5 {[%clk 0:02:55]}  Bh3 {[%clk 0:02:38]} 10. Bxh3 {[%clk 0:02:50]}  Qxh3 {[%clk 0:02:38]} 11. Ng5 {[%clk 0:02:50]}  Qc8 {[%clk 0:02:32]} 12. e4 {[%clk 0:02:50]}  h6 {[%clk 0:02:28]} 13. Nf3 {[%clk 0:02:29]}  Qh3 {[%clk 0:02:18]} 14. Qe2 {[%clk 0:02:22]}  Nbd7 {[%clk 0:02:15]} 15. Re1 {[%clk 0:02:20]}  Ng4 {[%clk 0:02:05]} 16. Qf1 {[%clk 0:02:13]}  Qh5 {[%clk 0:02:04]} 17. h3 {[%clk 0:01:56]}  Nge5 {[%clk 0:01:59]} 18. Nh2 {[%clk 0:01:49]}  c4 {[%clk 0:01:30]} 19. g4 {[%clk 0:01:48]}  Qh4 {[%clk 0:01:29]} 20. Bf4 {[%clk 0:01:44]}  f5 {[%clk 0:01:25]} 21. Bg3 {[%clk 0:01:40]}  Qf6 {[%clk 0:01:22]} 22. f4 {[%clk 0:01:37]}  Nd3 {[%clk 0:01:22]} 23. e5 {[%clk 0:01:35]}  Qb6+ {[%clk 0:01:22]} 24. Bf2 {[%clk 0:01:26]}  Qxb2 {[%clk 0:01:21]} 25. Bd4 {[%clk 0:01:09]}  Nxe1 {[%clk 0:01:06]} 26. Rxe1 {[%clk 0:01:10]}  fxg4 {[%clk 0:01:06]} 27. Ne2 {[%clk 0:01:09]}  Qxa2 {[%clk 0:01:01]} 28. hxg4 {[%clk 0:01:06]}  Qb3 {[%clk 0:00:50]} 29. Rb1 {[%clk 0:00:52]}  Qd3 {[%clk 0:00:48]} 30. Rxb7 {[%clk 0:00:50]}  Nb6 {[%clk 0:00:21]} 31. d6 {[%clk 0:00:32]}  exd6 {[%clk 0:00:19]} 32. Nf3 {[%clk 0:00:30]}  dxe5 {[%clk 0:00:18]} 33. Bxe5 {[%clk 0:00:26]}  Bxe5 {[%clk 0:00:17]} 34. Nxe5 {[%clk 0:00:27]}  Qd5 {[%clk 0:00:17]} 35. Rc7 {[%clk 0:00:20]}  Qe4 {[%clk 0:00:17]} 0-1


[Site "https://www.chess.com"]

[Event "Titled Tuesday Blitz February 21 Early 2023"]
[White "Ezat, Mohamed"]
[Black "Vaglio Munoz, Jaime"]
[WhiteFideId "10600906"]
[BlackFideId "6500145"]
[WhiteElo "2402"]
[BlackElo "2174"]
[Result "0-1"]
[Round "02"]
[TimeControl "180+2"]
[Date "2023.02.21"]
[WhiteClock "0:00:32"]
[BlackClock "0:01:39"]

1. d4 {[%clk 0:03:00]}  c6 {[%clk 0:02:58]} 2. c4 {[%clk 0:02:59]}  b5 {[%clk 0:02:59]} 3. e3 {[%clk 0:02:58]}  bxc4 {[%clk 0:02:58]} 4. Bxc4 {[%clk 0:02:58]}  Ba6 {[%clk 0:02:58]} 5. Bxa6 {[%clk 0:02:55]}  Qa5+ {[%clk 0:02:58]} 6. Nc3 {[%clk 0:02:53]}  Qxa6 {[%clk 0:02:59]} 7. Nge2 {[%clk 0:02:53]}  Nf6 {[%clk 0:02:57]} 8. O-O {[%clk 0:02:53]}  d5 {[%clk 0:02:58]} 9. Nf4 {[%clk 0:02:49]}  e6 {[%clk 0:02:57]} 10. Nd3 {[%clk 0:02:47]}  Bd6 {[%clk 0:02:56]} 11. b4 {[%clk 0:02:41]}  O-O {[%clk 0:02:53]} 12. Qb3 {[%clk 0:02:36]}  Nbd7 {[%clk 0:02:52]} 13. b5 {[%clk 0:02:14]}  cxb5 {[%clk 0:02:47]} 14. Qxb5 {[%clk 0:02:14]}  Qc8 {[%clk 0:02:40]} 15. Qa5 {[%clk 0:01:56]}  Qc4 {[%clk 0:02:27]} 16. Rd1 {[%clk 0:01:46]}  Rfc8 {[%clk 0:02:24]} 17. Nb5 {[%clk 0:01:36]}  Be7 {[%clk 0:02:12]} 18. Ba3 {[%clk 0:01:34]}  Bd8 {[%clk 0:02:04]} 19. Qa6 {[%clk 0:01:32]}  Rc6 {[%clk 0:02:00]} 20. Qb7 {[%clk 0:01:02]}  Rb8 {[%clk 0:01:58]} 21. Qxa7 {[%clk 0:00:54]}  Qxb5 {[%clk 0:01:52]} 22. Ne5 {[%clk 0:00:49]}  Ra6 {[%clk 0:01:43]} 23. Rab1 {[%clk 0:00:32]}  Rxa7 {[%clk 0:01:39]} 0-1


[Site "https://www.chess.com"]

[Event "Titled Tuesday Blitz February 21 Early 2023"]
[White "Jaskolka, Tomasz"]
[Black "Jimenez Jimenez, Leandro"]
[WhiteFideId "1170791"]
[BlackFideId "6415253"]
[WhiteElo "2238"]
[BlackElo "2146"]
[Result "1/2-1/2"]
[Round "02"]
[TimeControl "180+2"]
[Date "2023.02.21"]
[WhiteClock "0:00:06"]
[BlackClock "0:00:02"]

1. e4 {[%clk 0:02:57]}  e5 {[%clk 0:02:59]} 2. Nf3 {[%clk 0:02:56]}  Nc6 {[%clk 0:02:59]} 3. Bc4 {[%clk 0:02:56]}  Bc5 {[%clk 0:02:56]} 4. b4 {[%clk 0:02:52]}  Bxb4 {[%clk 0:02:56]} 5. c3 {[%clk 0:02:51]}  Ba5 {[%clk 0:02:56]} 6. d4 {[%clk 0:02:52]}  d6 {[%clk 0:02:56]} 7. Qb3 {[%clk 0:02:45]}  Qd7 {[%clk 0:02:53]} 8. O-O {[%clk 0:02:34]}  Bb6 {[%clk 0:02:52]} 9. dxe5 {[%clk 0:02:21]}  Na5 {[%clk 0:02:43]} 10. Qb4 {[%clk 0:02:02]}  Nxc4 {[%clk 0:02:19]} 11. Qxc4 {[%clk 0:02:00]}  Ne7 {[%clk 0:02:15]} 12. exd6 {[%clk 0:01:50]}  cxd6 {[%clk 0:02:14]} 13. Bf4 {[%clk 0:01:45]}  O-O {[%clk 0:02:10]} 14. Rd1 {[%clk 0:01:42]}  Ng6 {[%clk 0:01:41]} 15. Bxd6 {[%clk 0:01:22]}  Re8 {[%clk 0:01:37]} 16. Na3 {[%clk 0:01:14]}  Qg4 {[%clk 0:01:36]} 17. e5 {[%clk 0:00:56]}  Qh5 {[%clk 0:01:31]} 18. Nb5 {[%clk 0:00:51]}  Bg4 {[%clk 0:01:30]} 19. Qe4 {[%clk 0:00:40]}  Bxf3 {[%clk 0:01:21]} 20. Qxf3 {[%clk 0:00:39]}  Qxf3 {[%clk 0:01:20]} 21. gxf3 {[%clk 0:00:39]}  Nxe5 {[%clk 0:01:20]} 22. Kg2 {[%clk 0:00:33]}  Re6 {[%clk 0:01:09]} 23. Rd5 {[%clk 0:00:18]}  Rg6+ {[%clk 0:01:08]} 24. Kf1 {[%clk 0:00:17]}  Nxf3 {[%clk 0:01:08]} 25. Bg3 {[%clk 0:00:17]}  a6 {[%clk 0:01:04]} 26. Nd4 {[%clk 0:00:16]}  Nd2+ {[%clk 0:00:59]} 27. Kg2 {[%clk 0:00:15]}  Ne4 {[%clk 0:00:59]} 28. Nf5 {[%clk 0:00:12]}  Re6 {[%clk 0:00:47]} 29. c4 {[%clk 0:00:09]}  h6 {[%clk 0:00:36]} 30. Re1 {[%clk 0:00:08]}  Nxg3 {[%clk 0:00:29]} 31. Rxe6 {[%clk 0:00:08]}  fxe6 {[%clk 0:00:30]} 32. Ne7+ {[%clk 0:00:08]}  Kf7 {[%clk 0:00:29]} 33. Rd6 {[%clk 0:00:06]}  Bc5 {[%clk 0:00:21]} 34. Rd7 {[%clk 0:00:06]}  Bxe7 {[%clk 0:00:21]} 35. hxg3 {[%clk 0:00:07]}  Rb8 {[%clk 0:00:21]} 36. Kf3 {[%clk 0:00:07]}  b5 {[%clk 0:00:20]} 37. c5 {[%clk 0:00:07]}  Ke8 {[%clk 0:00:20]} 38. c6 {[%clk 0:00:08]}  Rc8 {[%clk 0:00:20]} 39. Ke4 {[%clk 0:00:07]}  Rxc6 {[%clk 0:00:20]} 40. Ra7 {[%clk 0:00:07]}  Rc5 {[%clk 0:00:18]} 41. Rxa6 {[%clk 0:00:07]}  b4 {[%clk 0:00:18]} 42. Rxe6 {[%clk 0:00:07]}  Kf7 {[%clk 0:00:18]} 43. Rb6 {[%clk 0:00:07]}  Rc2 {[%clk 0:00:17]} 44. f4 {[%clk 0:00:06]}  Rxa2 {[%clk 0:00:17]} 45. g4 {[%clk 0:00:07]}  g6 {[%clk 0:00:17]} 46. f5 {[%clk 0:00:07]}  gxf5+ {[%clk 0:00:18]} 47. Kxf5 {[%clk 0:00:08]}  Rf2+ {[%clk 0:00:17]} 48. Ke4 {[%clk 0:00:08]}  Rg2 {[%clk 0:00:17]} 49. Rxh6 {[%clk 0:00:08]}  Rxg4+ {[%clk 0:00:16]} 50. Kf5 {[%clk 0:00:07]}  Rg5+ {[%clk 0:00:16]} 51. Kf4 {[%clk 0:00:07]}  Rg7 {[%clk 0:00:14]} 52. Rb6 {[%clk 0:00:07]}  Rg1 {[%clk 0:00:13]} 53. Kf5 {[%clk 0:00:07]}  Rf1+ {[%clk 0:00:12]} 54. Ke5 {[%clk 0:00:07]}  Rb1 {[%clk 0:00:11]} 55. Kd4 {[%clk 0:00:07]}  Bf6+ {[%clk 0:00:07]} 56. Kc4 {[%clk 0:00:07]}  Bc3 {[%clk 0:00:08]} 57. Kd3 {[%clk 0:00:04]}  Ke7 {[%clk 0:00:08]} 58. Kc4 {[%clk 0:00:04]}  Kd7 {[%clk 0:00:08]} 59. Rb7+ {[%clk 0:00:04]}  Kc6 {[%clk 0:00:08]} 60. Rb8 {[%clk 0:00:05]}  Re1 {[%clk 0:00:08]} 61. Kb3 {[%clk 0:00:04]}  Kc5 {[%clk 0:00:06]} 62. Rc8+ {[%clk 0:00:04]}  Kd4 {[%clk 0:00:06]} 63. Rd8+ {[%clk 0:00:05]}  Ke3 {[%clk 0:00:05]} 64. Kc2 {[%clk 0:00:05]}  Re2+ {[%clk 0:00:04]} 65. Kb3 {[%clk 0:00:04]}  Rb2+ {[%clk 0:00:04]} 66. Kc4 {[%clk 0:00:05]}  Rd2 {[%clk 0:00:04]} 67. Re8+ {[%clk 0:00:05]}  Kf2 {[%clk 0:00:04]} 68. Kb3 {[%clk 0:00:05]}  Re2 {[%clk 0:00:04]} 69. Rf8+ {[%clk 0:00:05]}  Ke1 {[%clk 0:00:04]} 70. Rf3 {[%clk 0:00:05]}  Rb2+ {[%clk 0:00:04]} 71. Kc4 {[%clk 0:00:06]}  Kd1 {[%clk 0:00:04]} 72. Kd3 {[%clk 0:00:06]}  Rd2+ {[%clk 0:00:04]} 73. Kc4 {[%clk 0:00:06]}  Kc2 {[%clk 0:00:04]} 74. Rh3 {[%clk 0:00:04]}  Rd4+ {[%clk 0:00:04]} 75. Kb5 {[%clk 0:00:05]}  b3 {[%clk 0:00:03]} 76. Ka6 {[%clk 0:00:05]}  b2 {[%clk 0:00:04]} 77. Rh2+ {[%clk 0:00:05]}  Rd2 {[%clk 0:00:04]} 78. Rh7 {[%clk 0:00:04]}  b1=Q {[%clk 0:00:04]} 79. Rd7 {[%clk 0:00:05]}  Qa2+ {[%clk 0:00:01]} 80. Kb7 {[%clk 0:00:05]}  Rxd7+ {[%clk 0:00:02]} 81. Kc8 {[%clk 0:00:06]} 1/2-1/2


[Site "https://www.chess.com"]

[Event "Titled Tuesday Blitz February 21 Early 2023"]
[White "parintele_chess"]
[Black "Zochowski, Kacper"]
[BlackFideId "1125494"]
[WhiteElo "2249"]
[BlackElo "2262"]
[Result "0-1"]
[Round "02"]
[TimeControl "180+2"]
[Date "2023.02.21"]
[WhiteClock "0:00:53"]
[BlackClock "0:00:39"]

1. d4 {[%clk 0:02:59]}  d6 {[%clk 0:02:54]} 2. e4 {[%clk 0:02:57]}  Nf6 {[%clk 0:02:54]} 3. Nc3 {[%clk 0:02:56]}  e5 {[%clk 0:02:55]} 4. dxe5 {[%clk 0:02:55]}  dxe5 {[%clk 0:02:56]} 5. Qxd8+ {[%clk 0:02:55]}  Kxd8 {[%clk 0:02:56]} 6. Bg5 {[%clk 0:02:55]}  Be6 {[%clk 0:02:57]} 7. O-O-O+ {[%clk 0:02:56]}  Kc8 {[%clk 0:02:57]} 8. Bxf6 {[%clk 0:02:55]}  gxf6 {[%clk 0:02:57]} 9. g3 {[%clk 0:02:54]}  c6 {[%clk 0:02:53]} 10. Bh3 {[%clk 0:02:53]}  Nd7 {[%clk 0:02:52]} 11. Bxe6 {[%clk 0:02:52]}  fxe6 {[%clk 0:02:53]} 12. f4 {[%clk 0:02:52]}  exf4 {[%clk 0:02:49]} 13. gxf4 {[%clk 0:02:53]}  Bh6 {[%clk 0:02:49]} 14. Nge2 {[%clk 0:02:49]}  Kc7 {[%clk 0:02:49]} 15. Kb1 {[%clk 0:02:45]}  Rhg8 {[%clk 0:02:47]} 16. Rhg1 {[%clk 0:02:44]}  Nc5 {[%clk 0:02:39]} 17. b4 {[%clk 0:02:40]}  Nd7 {[%clk 0:02:23]} 18. Rxg8 {[%clk 0:02:27]}  Rxg8 {[%clk 0:02:22]} 19. Nd4 {[%clk 0:02:27]}  Re8 {[%clk 0:02:21]} 20. f5 {[%clk 0:02:27]}  Nf8 {[%clk 0:02:13]} 21. fxe6 {[%clk 0:02:26]}  Nxe6 {[%clk 0:02:13]} 22. Nf5 {[%clk 0:02:27]}  Bf4 {[%clk 0:02:11]} 23. Rg1 {[%clk 0:02:14]}  Be5 {[%clk 0:01:49]} 24. Ne2 {[%clk 0:02:14]}  Ng5 {[%clk 0:01:49]} 25. h4 {[%clk 0:02:02]}  Nxe4 {[%clk 0:01:49]} 26. Rg7+ {[%clk 0:02:02]}  Kb6 {[%clk 0:01:49]} 27. a4 {[%clk 0:01:54]}  Nc3+ {[%clk 0:01:46]} 28. Nxc3 {[%clk 0:01:54]}  Bxc3 {[%clk 0:01:47]} 29. b5 {[%clk 0:01:40]}  cxb5 {[%clk 0:01:03]} 30. axb5 {[%clk 0:01:38]}  Ka5 {[%clk 0:00:58]} 31. Nd6 {[%clk 0:01:25]}  Re1+ {[%clk 0:00:50]} 32. Ka2 {[%clk 0:01:25]}  f5 {[%clk 0:00:49]} 33. Rg3 {[%clk 0:01:10]}  Kb4 {[%clk 0:00:47]} 34. Rxc3 {[%clk 0:00:59]}  Kxc3 {[%clk 0:00:48]} 35. Nxf5 {[%clk 0:00:59]}  Kxc2 {[%clk 0:00:43]} 36. Nd6 {[%clk 0:00:56]}  Re5 {[%clk 0:00:40]} 37. Ka3 {[%clk 0:00:54]}  Rd5 {[%clk 0:00:38]} 38. Nxb7 {[%clk 0:00:55]}  Rxb5 {[%clk 0:00:38]} 39. Nd6 {[%clk 0:00:53]}  Rh5 {[%clk 0:00:39]} 0-1


[Site "https://www.chess.com"]

[Event "Titled Tuesday Blitz February 21 Early 2023"]
[White "Taboas Rodriguez, Daniel"]
[Black "Uzcategui Rodriguez, Alejandro"]
[WhiteFideId "2208466"]
[BlackFideId "3903400"]
[WhiteElo "2371"]
[BlackElo "2255"]
[Result "1-0"]
[Round "02"]
[TimeControl "180+2"]
[Date "2023.02.21"]
[WhiteClock "0:01:04"]
[BlackClock "0:00:57"]

1. d4 {[%clk 0:03:00]}  Nf6 {[%clk 0:02:57]} 2. Nf3 {[%clk 0:03:00]}  e6 {[%clk 0:02:56]} 3. c4 {[%clk 0:03:00]}  d5 {[%clk 0:02:53]} 4. Nc3 {[%clk 0:03:00]}  dxc4 {[%clk 0:02:52]} 5. Bg5 {[%clk 0:02:58]}  c5 {[%clk 0:02:30]} 6. e3 {[%clk 0:02:57]}  Nc6 {[%clk 0:02:27]} 7. Bxc4 {[%clk 0:02:57]}  Be7 {[%clk 0:02:21]} 8. O-O {[%clk 0:02:54]}  O-O {[%clk 0:02:19]} 9. dxc5 {[%clk 0:02:52]}  Bxc5 {[%clk 0:02:17]} 10. Qe2 {[%clk 0:02:51]}  a6 {[%clk 0:02:14]} 11. Rfd1 {[%clk 0:02:50]}  Qc7 {[%clk 0:02:14]} 12. a4 {[%clk 0:02:42]}  Be7 {[%clk 0:02:08]} 13. e4 {[%clk 0:02:40]}  Ne5 {[%clk 0:02:04]} 14. Nxe5 {[%clk 0:02:24]}  Qxe5 {[%clk 0:02:04]} 15. f4 {[%clk 0:02:24]}  Qc5+ {[%clk 0:02:02]} 16. Kh1 {[%clk 0:02:24]}  b6 {[%clk 0:01:55]} 17. e5 {[%clk 0:02:23]}  Ne8 {[%clk 0:01:55]} 18. Ne4 {[%clk 0:02:20]}  Qc7 {[%clk 0:01:54]} 19. Rac1 {[%clk 0:02:08]}  Qa7 {[%clk 0:01:50]} 20. Bxe7 {[%clk 0:02:00]}  Qxe7 {[%clk 0:01:48]} 21. Nd6 {[%clk 0:02:01]}  Bd7 {[%clk 0:01:45]} 22. b3 {[%clk 0:01:59]}  Rb8 {[%clk 0:01:42]} 23. Bxa6 {[%clk 0:01:59]}  f6 {[%clk 0:01:41]} 24. Bc4 {[%clk 0:01:53]}  fxe5 {[%clk 0:01:40]} 25. Qxe5 {[%clk 0:01:54]}  Nxd6 {[%clk 0:01:37]} 26. Qxd6 {[%clk 0:01:50]}  Qxd6 {[%clk 0:01:33]} 27. Rxd6 {[%clk 0:01:49]}  Bc8 {[%clk 0:01:33]} 28. f5 {[%clk 0:01:05]}  Rxf5 {[%clk 0:01:00]} 29. Rd8+ {[%clk 0:01:05]}  Rf8 {[%clk 0:00:57]} 30. Rxc8 {[%clk 0:01:04]} 1-0


[Site "https://www.chess.com"]